Workbook

Sheet Schedule 1
A1: Rate=G | B1: SCHEDULE 1 | H1: SECTION 1300
A2: <NewDataSet>· <xs:schema id="NewDataSet" xmlns="" xmlns:xs="http://www.w3.org/2001/XMLSchema" xmlns:msdata="urn:schemas-microsoft-com:xml-msdata">· <xs:element name="NewDataSet" msdata:IsDataSet="true" msdata:MainDataTable="SummaryItems" msdata:UseCurrentLocale="true">· <xs:complexType>· <xs:choice minOccurs="0" maxOccurs="unbounded">· <xs:element name="SummaryItems">· <xs:complexType>· <xs:sequence>· <xs:element name="ContractNo" type="xs:short" minOccurs="0" />· <xs:element name="ScheduleNo" type="xs:short" minOccurs="0" />· <xs:element name="SortNo" type="xs:short" minOccurs="0" />· <xs:element name="Item" type="xs:string" minOccurs="0" />· <xs:element name="Description" type="xs:string" minOccurs="0" />· <xs:element name="CalcType" type="xs:string" minOccurs="0" />· <xs:element name="CalcValue" type="xs:double" minOccurs="0" />· <xs:element name="UseFirstSubTotal" type="xs:boolean" minOccurs="0" />· </xs:sequence>· </xs:complexType>· </xs:element>· </xs:choice>· </xs:complexType>· </xs:element>· </xs:schema>·</NewDataSet> | B2: ITEM | C2: LIC | D2: DESCRIPTION | E2: UNIT | F2: QTY | G2: RATE | H2: AMOUNT R
A3: 199 | B3: 13.00 | D3: CONTRACTOR'S ESTABLISHMENT ON SITE AND GENERAL OBLIGATIONS
A5: 200 | B5: 13.01 | D5: Contractor's general obligations
A6: 201 | D6: (a) Fixed obligations | E6: L/Sum | F6: 1
A8: 202 | D8: (b) Value-related obligations | E8: L/Sum | F8: 1
A10: 203 | D10: (c) Time-related obligations | E10: Month | F10: 18
A12: 204 | B12: B13.02 | D12: Training, transport and community liaison:
A13: 205 | D13: (a) Training:
A15: 206 | D15: (i) Provisional sum for training allowance to be paid to targeted labour when undergoing formal training. | E15: Prov Sum | F15: 1 | G15: R500,000.00 | H15: =F15*G15 -> R500,000.00
A16: 207 | D16: (ii) Handling cost and profit in respect of item B13.02(a)(i) above (state % and extend as an amount) | E16: % | F16: =H15 -> 500 000
A18: 2556 | D18: (b) Transport:
A19: 208 | D19: (i) Provisional sum for transport and accommodation of workers for training where it is not possible to undertake the training in close proximity to the site. | E19: Prov Sum | F19: 1 | G19: R180,000.00 | H19: =F19*G19 -> R180,000.00
A21: 209 | D21: (ii) Handling cost and profit in respect of item B13.02(b)(i) above (state % and extend as an amount) | E21: % | F21: =H19 -> 180 000
A23: 210 | D23: (c) Community liaison:
A25: 211 | D25: (i) Remuneration for community liaison officer | E25: Prov.sum | F25: 1 | G25: =8900*24 -> R213,600.00 | H25: =F25*G25 -> R213,600.00
D27: (ii) Remuneration for Project Steering Committee | E27: Prov.sum | F27: 1 | G27: =10000*24 -> R240,000.00 | H27: =G27*F27 -> R240,000.00
A29: 212 | D29: (iii) Handling cost and profit in respect of item B13.02(c)(i) and item B13.02(c)(ii) above (state % and extend as an amount) | E29: % | F29: =H27 -> 240 000
A31: 213 | B31: B13.03 | D31: Contract nameboard:
A32: 214 | D32: (a) Supply and erect four (4) contract nameboards | E32: L/Sum | F32: 4
A34: 218 | B34: 13/22.26 | D34: Hand excavation to determine the positions of existing services | E34: m³ | F34: 250
A36: 226 | B36: B13.04 | D36: Relocation of water network:
A37: 227 | D37: (a) Provisional sum for the relocation of the existing water network | E37: Prov.sum | F37: 1 | G37: R1,800,000.00 | H37: =F37*G37 -> R1,800,000.00
A39: 2562 | D39: (b) Handling cost and profit in respect of item B13.04(a) above (state % and extend as an amount) | E39: % | F39: =H37 -> 1800 000
B40: TOTAL CARRIED FORWARD
H41: SECTION 1300
B42: ITEM | C42: LIC | D42: DESCRIPTION | E42: UNIT | F42: QTY | G42: RATE | H42: AMOUNT R
B43: BROUGHT FORWARD
A44: 766 | B44: B13.05 | D44: Relocation of electrical stand connections
A45: 764 | D45: (a) Provisional sum for the removal and re-installation of electrical stand connections and bulk electrical lines | E45: Prov.sum | F45: 1 | G45: R3,200,000.00
A47: 2563 | D47: (b) Handling cost and profit in respect of item B13.05(a) above (state % and extend as an amount) | F47: =H45 -> 0
A49: 229 | B49: B13.06 | D49: Occupational Health & Safety:
A50: 230 | D50: (a) Preparation of a Health and Safety Plan | E50: Sum | F50: 1
A52: 231 | D52: (b) Compilation of a Risk Assessment prior to construction | E52: Sum | F52: 1
A54: 232 | D54: (c) Health and Safety Induction Training of employees | E54: Sum | F54: 1
A56: 233 | D56: (d) Compilation and the keeping up to date of a Health and Safety file, which shall include all documentation required in terms of the Act | E56: Sum | F56: 1
A58: 234 | D58: (e) Implementation of the Health and Safety Plan over the entire construction period | E58: Month | F58: 18
A60: 2559 | B60: B13.07
A61: 2560
A63: 2561
B78: TOTAL CARRIED FORWARD TO SUMMARY OF SECTIONS
H79: SECTION 1400
B80: ITEM | C80: LIC | D80: DESCRIPTION | E80: UNIT | F80: QTY | G80: RATE | H80: AMOUNT R
A81: 237 | B81: 14.00 | D81: HOUSING, OFFICES AND LABORATORY FOR THE ENGINEER'S SITE PERSONNEL
A83: 238 | B83: 14.01 | D83: Office and laboratory accommodation (Including glass wool ceiling insulation)
A84: 239 | D84: (a) Offices (Interior floor space of Engineers Office and Boardroom) | E84: m² | F84: 61
A86: 240 | D86: (b) Laboratory (Interior floor space of Laboratory Block) | E86: m² | F86: 108
A88: 241 | D88: (c) Open concrete working floors, 150 mm thick | E88: m² | F88: 55
A90: 242 | D90: (d) Roofs over open concrete working floors | E90: m² | F90: 52
A92: 243 | D92: (e) Ablution units
A94: 767 | D94: (i) Ablution at Engineers Office | E94: m² | F94: 9
A96: 768 | D96: (ii) Ablution Block | E96: m² | F96: 35
A98: 244 | D98: (f) Stores (Store room & Cooking Unit) | E98: m² | F98: 22
A100: 245 | B100: 14.02 | D100: Office and laboratory furniture
A101: 246 | D101: (a) Chairs | E101: No | F101: 25
A103: 247 | D103: (b) Draughtsman's stools | E103: No | F103: 4
A105: 248 | D105: (c) High chairs for laboratory | E105: No | F105: 4
A107: 249 | D107: (d) Desks, complete with drawers and locks | E107: No | F107: 5
A109: 250 | D109: (e) Drawing tables | E109: No | F109: 2
A111: 251 | D111: (f) Conference tables | E111: No | F111: 1
A113: 252 | B113: B14.03 | D113: Office and laboratory fittings Installations and equipment (To conform to municipal building regulations where applicable)
A114: 253 | D114: (a) Items measured by number
A115: 254 | D115: (i) 220/250 volt power points | E115: No | F115: 20
A117: 255 | D117: (ii) 400/231 volt 3-phase power points | E117: No | F117: 6
A118: 256 | D118: (iv) Double 55 watt fluorescent light fittings complete with ballast and tubes | E118: No | F118: 25
A120: 258 | D120: (vi) Hand wash basins complete with taps and drains | E120: No | F120: 4
A121: 259 | D121: (vii) Laboratory basins complete with swanneck taps and drains | E121: No | F121: 2
B122: TOTAL CARRIED FORWARD
H123: SECTION 1400
B124: ITEM | C124: LIC | D124: DESCRIPTION | E124: UNIT | F124: QTY | G124: RATE | H124: AMOUNT R
B125: BROUGHT FORWARD | H125: =H122 -> R0.00
A126: 260 | D126: (viii) Extractor fans installed complete with own power connection | E126: No | F126: 6
A128: 261 | D128: (x) Fire extinguishers, 9,0 kg,all purpose dry powder type, complete, mounted on wall with brackets | E128: No | F128: 10
A130: 262 | D130: (xi) Air conditioning units with 2,2 kW minimum capacity, mounted and with own power connection | E130: No | F130: 6
A132: 263 | D132: (xiii) Curing chamber for UCS specimens, complete with water connection, including the provision of brick partitions, plaster, paint and shelving, all complete according the drawings | E132: No | F132: 1
A134: 264 | D134: (xiv) General-purpose steel cupboards with shelves | E134: No | F134: 6
A136: 265 | D136: (xv) Steel filing cabinets with drawers | E136: No | F136: 6
A138: 266 | D138: (xvi) Refrigerators | E138: No | F138: 3
A140: 267 | D140: (xvii) Bookcases | E140: No | F140: 5
A142: 268 | D142: (xviii) Voltage stabilizers (UPS) | E142: No | F142: 8
A144: 269 | D144: (xix) Steel plan cabinets | E144: No | F144: 2
A146: 270 | D146: (xx) Floodlights complete with poles and 20 watts minimum LED bulbs | E146: No | F146: 10
A148: 271 | B148: B14.03 | D148: (b) Prime-cost items and items paid for in a Lump Sum:
A149: 277 | D149: (ix) Provision for cellular phone contracts with 500-minutes airtime allowance. | E149: PC Sum | F149: 1 | G149: =1500*24 -> R36,000.00 | H149: =F149*G149 -> R36,000.00
A151: 2557 | D151: (x) Handling cost and profit in respect of sub-item (b)(ix) above (state % and extent as an amount) | E151: % | F151: =H149 -> 36 000
A153: 2558 | B153: 14.03 | D153: (c) Items measured by area:
A154: 821 | D154: (iv) Constant-temperature baths (Concrete) | E154: m² | F154: 4
A156: 822 | D156: (v) Foundations for laboratory equipment (Concrete) | E156: m² | F156: 2
A158: 286 | B158: 14.04 | D158: Car ports
A159: 287 | D159: Car ports, as specifiedon the drawings, at offices and laboratory buildings | E159: No | F159: 6
B160: TOTAL CARRIED FORWARD
H161: SECTION 1400
B162: ITEM | C162: LIC | D162: DESCRIPTION | E162: UNIT | F162: QTY | G162: RATE | H162: AMOUNT R
B163: BROUGHT FORWARD | H163: =H160 -> R0.00
B164: 14.05 | D164: Housing for labourers
A165: 289 | D165: (a) Housing as specified including beds, mattresses, bedside chest, chairs, tables, lockers, electricity, plug points, electrical light fittings, and burglar proofing | E165: No | F165: 6
A167: 291 | D167: (c) Cooking unit, complete with stove, basin, concrete working table, shelving, sink and fuel (where applicable) | E167: No | F167: 1
A169: 296 | B169: 14.08 | D169: Services
A170: 297 | D170: (a) Services at office and laboratories
A172: 298 | D172: (i) Fixed costs | E172: L/Sum | F172: 1
A174: 299 | D174: (ii) Running costs | E174: Month | F174: 24
A176: 300 | B176: 14.10 | D176: Provision of photostat facilities | E176: Month | F176: 24
A178: 301 | B178: B14.11 | D178: Survey equipment (For items required refer to B14.11(a) to (l) in the project spesifications) | E178: L/Sum | F178: 1
B211: TOTAL CARRIED FORWARD TO SUMMARY OF SECTIONS
H212: SECTION 1500
B213: ITEM | C213: LIC | D213: DESCRIPTION | E213: UNIT | F213: QTY | G213: RATE | H213: AMOUNT R
A214: 303 | B214: 15.00 | D214: ACCOMMODATION OF TRAFFIC
A215: 304 | B215: B15.01 | D215: Accommodating traffic and maintaining temporary deviations | E215: km | F215: 10
A217: 305 | B217: B15.02 | D217: Earthworks for temporary deviations
A218: 306 | D218: (a) Shaping of temporary deviations | E218: km | F218: 5.00
A220: 307 | D220: (b) Cut and borrow to fill | E220: m³ | F220: =1000*0.45*6 -> 2 700
A222: 308 | D222: (c) Cut to spoil | E222: m³ | F222: 250
A224: 309 | B224: B15.03 | D224: Temporary traffic-control facilities
A225: 310 | C225: LI | D225: (a) Flagmen | E225: man-day | F225: =4*24*22 -> 2 112
A227: 311 | D227: (b) Portable STOP and GO-RY signs | E227: No | F227: 6
A229: 312 | D229: (e) Road signs, R- and TR-series, (600mm in diameter) | E229: No | F229: 75
A231: 313 | D231: (f) Road signs, TW-series, (1500mm sides) | E231: No | F231: 12
A233: 314 | D233: (g) Road signs, STW-, DTG-, TGS- and TG-series (excluding delineators and barricades) | E233: m² | F233: 8
A235: 315 | D235: (h) Delineators (DTG50J) (250 mm x 1000 mm):
A237: 316 | D237: (1) Single | E237: No | F237: 150
A239: 317 | D239: (2) Mounted back to back | E239: No | F239: 100
A241: 318 | D241: (i) Moveable barricade/road sign combination (1.8 m wide x 2.7 m high) | E241: No | F241: 20
A243: 319 | D243: (j) Traffic cones (450mm high) | E243: No | F243: 100
A245: 823 | D245: (k) Single guardrails attached to posts | E245: m | F245: 220
A247: 824 | D247: (l) Movable barriers (Armco) | E247: m | F247: 6
A249: 825 | D249: (m) Two-way communication devices (Handheld 5 watt Kirisun radio with one spare battery) | E249: No | F249: 6
A251: 826 | D251: (n) Other traffic control measures odered by the engineer
A253: 827 | D253: (i) Provision of other traffic control mesures | E253: Prov Sum | F253: 1 | G253: R100,000.00 | H253: R100,000.00
A254: 828 | D254: (ii) Handling costs and profit in respect of subitem B15.03 (n)(i) | E254: % | F254: 100 000
A256: 829 | B256: 15.04 | D256: Relocation of traffic-control facilities | E256: L/Sum | F256: 1
A257: 323 | B257: 15.05 | D257: Gravelling and repair of temporary deviations and existing gravel shoulders used as temporary deviations:
B258: TOTAL CARRIED FORWARD
H259: SECTION 1500
B260: ITEM | C260: LIC | D260: DESCRIPTION | E260: UNIT | F260: QTY | G260: RATE | H260: AMOUNT R
B261: BROUGHT FORWARD | H261: =H258 -> R0.00
A262: 324 | D262: (a) Temporary deviations | E262: m³ | F262: 20
A264: 325 | D264: (b) Existing gravel shoulders | E264: m³ | F264: 20
A266: 326 | B266: 15.06 | D266: Watering of temporary deviations | E266: kl | F266: =1500 -> 1 500
A268: 327 | B268: 15.07 | D268: Blading by road grader of:
A269: 328 | D269: (a) Temporary deviations | E269: km-pass | F269: 5.0
A271: 329 | D271: (b) Existing roads used as temporary deviations | E271: km-pass | F271: 4.0
A273: 330 | D273: (c) Existing gravel shoulders used as temporary deviations | E273: km-pass | F273: 5.0
A275: 331 | B275: B15.10 | D275: Accommodation of traffic where road is constructed in half widths | E275: km | F275: 3.0
A277: 333 | B277: 15.12 | D277: Temporary culverts
A278: 334 | D278: (a) Provision and laying of temporary prefabricated culverts complete
A280: 335 | D280: 2) 600 mm dia class 100D concrete pipe culvert on class B bedding | E280: m | F280: 50
A282: 336 | D282: (b) Re-use of prefabricated culverts complete
A284: 337 | D284: 2) 600 mm dia class 100D concrete pipe culvert on class B bedding | E284: m | F284: 15
A286: 338 | D286: (c) Eventual removal of prefabricated culverts | E286: m | F286: =F280+F284 -> 65
A288: 339 | D288: (d) Overhaul on excavated material carted to spoil, backfill material (but excluding portland cement), prefabricated culverts removed and reinstalled, and prefabricated culverts removed and stacked, for haul in excess of a free-haul distance of 1,0km | E288: m³-km | F288: 250
A290: 831 | B290: B15.15 | D290: Provision of traffic safety equipement for use by the engineer.
A292: 832 | D292: (a) Safety jackets | E292: No | F292: 12
B301: TOTAL CARRIED FORWARD TO SUMMARY OF SECTIONS
H302: SECTION 1700
B303: ITEM | C303: LIC | D303: DESCRIPTION | E303: UNIT | F303: QTY | G303: RATE | H303: AMOUNT R
A304: 363 | B304: 17.00 | D304: CLEARING AND GRUBBING
A306: 364 | B306: 17.01 | D306: Clearing and grubbing | E306: ha | F306: =6300*12/10000 -> 7.6
A308: 365 | B308: 17.02 | D308: Removal and grubbing of large trees and tree stumps
A309: 366 | D309: (a) Girth exceeding 1m up to and including 2m | E309: No | F309: 10
A311: 367 | D311: (b) Girth exceeding 2m up to and including 3m | E311: No | F311: 5
A313: 368 | B313: 17.04 | C313: LI | D313: Clearing and grubbing at inlets and outlets of hydraulic structures | E313: m² | F313: 105
A315: 369 | B315: 17.05 | D315: Cleaning out of hydraulic structures:
A316: 370 | D316: (a) Pipes with an internal diameter up to and including 750mm | E316: m³ | F316: 5.0
A318: 371 | D318: (b) Pipes with an internal diameter exceeding 750mm | E318: m³ | F318: 5.0
A320: 372 | D320: (c) Box culverts up to and including 1,5m vertical dimension | E320: m³ | F320: 5.0
A322: 373 | D322: (d) Box culverts exceeding 1,5m vertical dimension | E322: m³ | F322: 5.0
A324: 1372
A325: 1373
A327: 1375
A329: 1374
B357: TOTAL CARRIED FORWARD TO SUMMARY OF SECTIONS
H358: SECTION 1800
B359: ITEM | C359: LIC | D359: DESCRIPTION | E359: UNIT | F359: QTY | G359: RATE | H359: AMOUNT R
A360: 374 | B360: 18.00 | D360: DAYWORK SCHEDULE
A362: 375 | B362: B18.01 | D362: Labourers:
A363: 376 | D363: (a) Unskilled | E363: hr | F363: 176
A365: 377 | D365: (b) Semi-skilled | E365: hr | F365: 88
A367: 378 | D367: (c) Skilled | E367: hr | F367: 88
A369: 379 | B369: B18.02 | D369: Foreman | E369: hr | F369: 88
A371: 380 | B371: B18.03 | D371: Tipper trucks:
A372: 381 | D372: (a) 3 - 5 ton | E372: hr | F372: 40
A374: 382 | D374: (b) 5,1 - 10 ton | E374: hr | F374: 40
A376: 383 | B376: B18.04 | D376: Loader (0.5m³ bucket) | E376: hr | F376: 40
A378: 384 | B378: B18.05 | D378: Excavator (Cat 350 or similar) | E378: hr | F378: 16
A380: 385 | B380: B18.06 | D380: Grader (CAT 140G or similar) | E380: hr | F380: 40
A382: 386 | B382: B18.07 | D382: Vibratory roller (12ton) | E382: hr | F382: 16
A384: 387 | B384: B18.08 | D384: Grid roller | E384: hr | F384: 16
A386: 388 | B386: B18.09 | D386: Pedestrian roller (Bomag BW90 or similar) | E386: hr | F386: 88
A388: 389 | B388: B18.10 | D388: Rammers (wackers) | E388: hr | F388: 88
A390: 390 | B390: B18.11 | D390: Backhoe loader (Cat 416D or similar) | E390: hr | F390: 88
A392: 391 | B392: B18.12 | D392: Water truck (minimum 10 000 liter capacity) | E392: hr | F392: 32
A394: 392 | B394: B18.13 | D394: Dozer (D7 or similar) | E394: hr | F394: 16
A396: 393 | B396: B18.14 | D396: Flatbed truck | E396: km | F396: 250
A398: 394 | B398: B18.15 | D398: LDV (1800cc minimum) | E398: km | F398: 450
A400: 395 | B400: B18.16 | D400: Materials acquired under day works:
A401: 396 | D401: (a) Provisional sum for materials acquired under day works | E401: Prov Sum | F401: 1 | G401: R300,000.00 | H401: =F401*G401 -> R300,000.00
A403: 397 | D403: (b) Handling costs and profit in respect of sub-item B18.16(a) above | E403: % | F403: =H401 -> 300 000
B415: TOTAL CARRIED FORWARD TO SUMMARY OF SECTIONS
H416: SECTION 2100
B417: ITEM | C417: LIC | D417: DESCRIPTION | E417: UNIT | F417: QTY | G417: RATE | H417: AMOUNT R
... 395 more rows

Sheet Summary
B1: CITY OF MBOMBELA MATSAFENI KAAPSCHEHOOP BUS ROUTE
A2: Rate=G | B2: SUMMARY OF SCHEDULES
B3: NO | C3: DESCRIPTION | D3: AMOUNT R
B4: 1 | C4: MATSAFENI KAPSCHEHOOP BUS ROUTE ROAD (6.28KM)
B6: 2 | C6: Sub-Total A:Summary Schedules
B8: 3 | C8: 10% Contigencies
B11: 4 | C11: Sub-Total B
B13: 5 | C13: 6% Escalation
B16: 6 | C16: Sub-Total C
B18: 7 | C18: VAT 15%
B21: 8 | C21: TOTAL CONSTRUCTION COST
